Cogmind - Beta 10.2 *** ADVENTURER MODE // 2021.09.10 @ 02:00:06 Player: Terra Result: Destroyed by G-34 Mercenary with Small Laser Performance ------------- Evolutions (0) 0 Regions Visited (2) 400 Robots Destroyed (24) 120 Value Destroyed (441) 441 Prototype IDs (2) 40 Alien Tech Used (0) 0 Bonus (0) 0 TOTAL SCORE: 1001 Bonus ------- None Cogmind --------- Core Integrity 0/250 Matter 300/300 Energy 87/100 System Corruption 2% Temperature Cool (15) Movement Core (50) Location -10/Mines Parts ------- > --- POWER (1) -------- (None) > --- PROPULSION (2) --- (None) > --- UTILITY (2) ------ (None) > --- WEAPON (2) ------- (None) > --- INVENTORY (4) ---- Ion Engine Aluminum Leg Hover Unit Medium Matter Pod (100) Peak State ------------ > --- POWER ------------ Light Ion Engine > --- PROPULSION ------- Aluminum Leg Aluminum Leg > --- UTILITY ---------- Medium Matter Pod Improved Terrain Scanner > --- WEAPON ----------- Medium Laser Assault Rifle > --- INVENTORY -------- Wheel Wheel [Rating: 8] Favorites ----------- Power Light Ion Engine Engine Light Ion Engine Propulsion Aluminum Leg Leg Aluminum Leg Wheel Wheel Hover Unit Hover Unit Flight Unit Flight Unit Utility Visual Processing Unit Device Tractor Beam Storage Medium Matter Pod Processor Visual Processing Unit Protection Light Armor Plating Weapon Assault Rifle Energy Gun Medium Laser Ballistic Gun Assault Rifle Launcher Grenade Launcher Build | -11 -10 -10 ------- Run | Scr Mat Min Slots Evolved . | . . . Power . | . . . Propulsion . | . . . Utility . | . . . Weapon . | . . . Parts Attached 31 | 11 17 3 Power 6 | 3 3 . Engine 6 | 3 3 . Core . | . . . Reactor . | . . . Propulsion 11 | 3 6 2 Treads . | . . . Leg 4 | 2 . 2 Wheel 4 | 1 3 . Hover 2 | . 2 . Flight 1 | . 1 . Utility 9 | 3 5 1 Device 3 | 1 1 1 Storage 3 | 1 2 . Processor 2 | 1 1 . Hackware . | . . . Protection 1 | . 1 . Artifact . | . . . Weapon 5 | 2 3 . Energy Gun 2 | 1 1 . Energy Cannon . | . . . Ballistic Gun 2 | 1 1 . Ballistic Cannon . | . . . Launcher 1 | . 1 . Special Weapon . | . . . Impact Weapon . | . . . Slashing Weapon . | . . . Piercing Weapon . | . . . Special Melee Weapon . | . . . Unidentified Prototypes . | . . . Parts Lost 9 | . 4 5 Power 1 | . . 1 Propulsion 4 | . 2 2 Utility 1 | . 1 . Weapon 3 | . 1 2 Highest Loss Streak 3 | . 3 2 Average Slot Usage (%) 84 | . 92 73 Engine 13 | . 14 13 Leg 10 | . 5 16 Wheel 5 | . 10 . Hover 8 | . 9 7 Device 9 | . 10 7 Storage 6 | . 12 . Processor 8 | . 4 14 Protection 2 | . . 5 Energy Gun 4 | . 4 5 Ballistic Gun 7 | . 14 . Launcher 3 | . 4 2 Naked Turns 4 | . . 4 Heaviest Build 24 | 10 24 11 Greatest Support 20 | 20 20 20 Greatest Overweight (x) 2 | . 2 1 Average Overweight (x) . | . . . Largest Inventory Capacity 10 | 4 10 4 Average Capacity 4 | 4 4 4 Most Carried 4 | 4 4 4 Average Carried 3 | 2 3 3 Final Capacity 4 | 4 4 4 Final Carried 4 | 4 4 4 Class Distribution -------------------- 69% | Mutant 30% | Scavenger-Mutant Dominant Class ---------------- Mutant | -10/Materials Mutant | -10/Mines Resources | -11 -10 -10 ----------- Run | Scr Mat Min Matter Collected 765 | 421 177 167 Remotely 81 | . . 81 Salvage Created 531 | 117 364 50 Parts 57 | 20 34 3 Haulers Intercepted 1 | . 1 . Recyclers Shooed . | . . . Parts Field Recycled . | . . . Retrieved Matter . | . . . Parts Self-Destructed . | . . . Prevented . | . . . Kills | -11 -10 -10 ------- Run | Scr Mat Min Combat Hostiles Destroyed 12 | 1 9 2 Guns 7 | 1 5 1 AOE 5 | . 4 1 Classes Destroyed 7 | 3 4 . Worker 3 | 1 2 . Builder 3 | . 3 . Tunneler 3 | 3 . . Hauler 1 | . 1 . Watcher 2 | . 2 . Swarmer 4 | . 4 . Grunt 8 | 1 5 2 Best Kill Streak 8 | 4 8 2 Combat Bots Only 4 | 1 4 2 Max Kills in Single Turn 5 | 1 5 1 Gunslinging . | . . . Exploded 2 | . 2 1 Melee . | . . . Uniques/NPCs Destroyed . | . . . Combat | -11 -10 -10 -------- Run | Scr Mat Min Damage Taken 991 | 17 516 458 Core 250 | 9 104 137 Absorbed by Shields . | . . . Core Remaining (%) 96 | 96 . . Volleys Fired 82 | 7 68 7 Largest 2 | 2 2 2 Hottest 80 | 70 70 80 Shots Fired 111 | 14 86 11 Gun 102 | 14 81 7 Cannon . | . . . Launcher 9 | . 5 4 Special . | . . . Kinetic 76 | 7 69 . Thermal 26 | 7 12 7 Explosive 9 | . 5 4 Electromagnetic . | . . . Robot Hit Streak 24 | 11 24 2 Robot Miss Streak 4 | 1 4 1 Penetration Max . | . . . Secondary Targets . | . . . Shots Hit Robots 66 | 11 53 2 Core Hits 43 | 6 28 9 Critical Hits . | . . . Critical Kills . | . . . Critical Parts Destroyed . | . . . Melee Attacks . | . . . Impact . | . . . Slashing . | . . . Piercing . | . . . Sneak Attacks . | . . . Combat Hostiles . | . . . Follow-up Attacks . | . . . Damage Inflicted 1546 | 142 1221 183 Guns 692 | 142 501 49 Cannons . | . . . Explosions 805 | . 720 85 Melee . | . . . Ramming 49 | . . 49 Kinetic 483 | 68 415 . Thermal 209 | 74 86 49 Explosive 805 | . 720 85 Electromagnetic . | . . . Impact . | . . . Slashing . | . . . Piercing . | . . . Highest Corruption 2 | . . 2 Average Corruption 2 | . . 2 Corruption Purged . | . . . Effects 3 | . . 3 Heat Flow Errors 1 | . . 1 Energy Discharges 1 | . . 1 Data Loss (minor) 1 | . . 1 Overload Shots . | . . . Overflow Damage 81 | . 81 . Projectiles . | . . . Explosions 81 | . 81 . Melee . | . . . Knockbacks 1 | . . 1 Impact 1 | . . 1 Kinetic . | . . . Secondary . | . . . Self-Inflicted Damage 185 | . 169 16 Shots 2 | . 2 . Rammed 9 | . . 9 Targets Rammed 21 | . . 21 Kicked 12 | . . 12 Crushed . | . . . Highest Temperature 221 | 60 36 221 Average Temperature 46 | 29 10 103 Received Heat Transfer 324 | 12 108 204 Effects 1 | . . 1 Energy Bleed 1 | . . 1 Siege Activations . | . . . Robots Corrupted . | . . . Combat Hostiles . | . . . Parts Fried . | . . . Impact Corruptions . | . . . Robots Melted . | . . . Combat Hostiles . | . . . Parts Melted 1 | . 1 . Heat Transferred 629 | 222 259 148 Parts Sabotaged . | . . . Parts Stolen . | . . . Parts Stripped . | . . . Power Chain Reactions . | . . . Missiles Intercepted . | . . . Alert | -11 -10 -10 ------- Run | Scr Mat Min Peak Influence 234 | 40 234 99 Initial 34 | . 22 34 Average 86 | 13 124 57 Maximum Alert Level 1 | . 1 . Low Security (%) 93 | 100 86 100 Level 1 6 | . 13 . Level 2 . | . . . Level 3 . | . . . Level 4 . | . . . Level 5 . | . . . High Security . | . . . Max Security . | . . . Squads Dispatched 1 | . 1 . Investigation 1 | . 1 . Extermination . | . . . Reinforcement . | . . . Assault . | . . . Garrison . | . . . Intercept . | . . . Construction Impeded . | . . . Haulers Reinforced . | . . . Stealth | -11 -10 -10 --------- Run | Scr Mat Min Distress Signals 2 | . 2 . Communications Jammed . | . . . Distress Signals . | . . . Times Spotted 30 | 1 19 10 Peak Tracking Total 6 | 1 6 4 Tactical Retreats 1 | . . 1 Traps | -11 -10 -10 ------- Run | Scr Mat Min Traps Triggered 2 | . 2 . Indirectly . | . . . Trap Hack Attempts . | . . . Triggered . | . . . Disarmed 4 | . 4 . Reprogrammed . | . . . Reused . | . . . Traps Extracted . | . . . Installed . | . . . Triggered . | . . . Machines | -11 -10 -10 ---------- Run | Scr Mat Min Machines Disabled 3 | . 3 . Max in Single Turn 2 | . 2 . Machines Sabotaged . | . . . Garrisons Compromised . | . . . Overloaded Fab Kills . | . . . Fab Network Shutdowns . | . . . Hacking | -11 -10 -10 --------- Run | Scr Mat Min Machines Accessed 5 | . 5 . Terminals 3 | . 3 . Fabricators . | . . . Repair Stations . | . . . Recycling Units 2 | . 2 . Scanalyzers . | . . . Garrison Access . | . . . Total Hacks 14 | . 14 . Successful 12 | . 12 . Failed 2 | . 2 . Catastrophic . | . . . Database Lockouts . | . . . Manual 1 | . 1 . Terminals 6 | . 6 . Fabricators . | . . . Repair Stations . | . . . Recycling Units 8 | . 8 . Scanalyzers . | . . . Garrison Access . | . . . Terminal Hacks 5 | . 5 . Record 2 | . 2 . Prototype ID Bank 1 | . 1 . Alert Level 1 | . 1 . Disarm Traps 1 | . 1 . Fabricator Hacks . | . . . Repair Station Hacks . | . . . Recycling Unit Hacks 7 | . 7 . Recycle Component 3 | . 3 . Process 1 | . 1 . Report Inventory 3 | . 3 . Scanalyzer . | . . . Garrison Access Hacks . | . . . Unauthorized Hacks . | . . . Terminals . | . . . Fabricators . | . . . Repair Stations . | . . . Recycling Units . | . . . Scanalyzers . | . . . Garrison Access . | . . . Data Cores Recovered . | . . . Used . | . . . Hacking Detections 3 | . 3 . Full Trace Events 1 | . 1 . Feedback Events . | . . . Feedback Blocked . | . . . Robot Schematics Acquired . | . . . Robots Built . | . . . Matter . | . . . Time . | . . . Total Robot Build Rating . | . . . Part Schematics Acquired . | . . . Parts Built . | . . . Matter . | . . . Time . | . . . Total Part Build Rating . | . . . Parts Repaired . | . . . Time . | . . . Parts Recycled 3 | . 3 . Recycled Matter 358 | . 358 . Retrieved Matter . | . . . Retrieved Components . | . . . Parts Scanalyzed . | . . . Part Schematics Acquired . | . . . Parts Damaged . | . . . Bothacking | -11 -10 -10 ------------ Run | Scr Mat Min Used RIF Installer . | . . . Robots Hacked . | . . . Non-combat . | . . . Combat . | . . . Robot Hacks Applied . | . . . Relay Couplers Released . | . . . Robots Rewired . | . . . Allies Hacked . | . . . Hacks Repelled . | . . . Allies | -11 -10 -10 -------- Run | Scr Mat Min Total Allies . | . . . Largest Group . | . . . Highest-Rated Group . | . . . Highest-Rated Ally . | . . . Total Orders . | . . . Ally Attacks . | . . . Total Damage . | . . . Kills . | . . . Allies Corrupted . | . . . Allies Melted . | . . . Intel | -11 -10 -10 ------- Run | Scr Mat Min Robot Analysis Total . | . . . Derelict Logs Recovered 2 | . . 2 Drone Launches . | . . . Drone Recoveries . | . . . Exploration | -11 -10 -10 ------------- Run | Scr Mat Min Turns Passed 1157 | 125 580 452 Spaces Moved 1014 | 76 533 405 Core 35 | 24 3 8 Treads . | . . . Legs 315 | 52 52 211 Wheels 202 | . 202 . Hover 462 | . 276 186 Flight . | . . . Fastest Speed 50 | 50 56 50 Average Speed 85 | 97 72 99 Slowest Speed 150 | 120 150 120 Overloaded Moves . | . . . Propulsion Burnouts . | . . . Robots Hopped . | . . . Cave-ins Triggered . | . . . Exploration Rate (%) 49 | 5 78 65 Regions Visited 2 Branch Regions 1 Pre-discovered Areas 1 | . . 1 Known Exits Taken . | . . . Unknown Exits Taken 2 | 1 1 . Scrap Searched 1 | . . 1 Spaces Dug . | . . . Terrain Destroyed 45 | . 31 14 Melee . | . . . Projectile . | . . . AOE 45 | . 31 14 Terrain Rammed . | . . . Walls Destroyed . | . . . Machines Disabled . | . . . Actions | -11 -10 -10 --------- Run | Scr Mat Min Total 1193 | 112 641 440 Wait 11 | 5 6 . Move 1012 | 75 532 405 Hop . | . . . Pick Up 20 | 12 7 1 Fast Attach 9 | . 9 . Attach 11 | 8 1 2 Detach 3 | 1 1 1 Swap 11 | 3 7 1 Drop 13 | 1 10 2 Fire 82 | 7 68 7 Melee . | . . . Ram 2 | . . 2 Kick 19 | . . 19 Crush . | . . . Escape Stasis . | . . . Rewire . | . . . Trap . | . . . Miscellaneous . | . . . Route ------- -11/Scrapyard -10/Materials (discovered 4 exits: [*Mat x2] / [*Min x2]) -10/Mines History --------- Turn | Location | Event 2 | -11/Scrapyard | Met Revision 17 75 | -11/Scrapyard | Discovered new exit (range 8) 126 | -11/Scrapyard | Entered Materials 283 | -10/Materials | Lost 3 parts (2n1w) 510 | -10/Materials | Discovered new exit (range 9) 569 | -10/Materials | Discovered new exit (range 17) 649 | -10/Materials | Discovered new exit (range 3) 674 | -10/Materials | Discovered new exit (range 13) 706 | -10/Materials | Entered Mines 763 | -10/Mines | Build established: Scavenger-Mutant 813 | -10/Mines | Learned Materials security intel 871 | -10/Mines | Excavation squad dispatched 871 | -10/Mines | A large section of the Mines collapsed 890 | -10/Mines | Core integrity fell below 50% 1063 | -10/Mines | Build established: Mutant 1121 | -10/Mines | Excavation squad dispatched 1140 | -10/Mines | Core integrity fell below 20% 1158 | -10/Mines | Destroyed by G-34 Mercenary with Small Laser Last Messages --------------- System corrupted: Component data lost. System corrupted: Energy discharge (-38). Slammed into K-01 Serf. Visual Processing Unit permanently disabled. Destabilizing: Short circuit. Kicked T-07 Excavator out of the way. K-01 Serf collects debris. Slammed into T-07 Excavator. ALERT: Derelict activity in mines confirmed. Dispatching additional escorted excavation squad. Kicked G-47 Trooper out of the way. G-47 Trooper: "SECOND INTRUDER APPROACHING. ELIMINATE." Lgt. Ion Engine destroyed. Kicked G-47 Trooper out of the way. Aluminum Leg destroyed. Core Extractor disabled. K-01 Serf collects debris. Dropped Tractor Beam. Discarded Broken Visual Processing Unit. [Achievement: First Step to Greatness] Map ----- +----------------------------------------------------+ | | | | | | | | | | | | | | | | | | | | | | | | | | | | | ????????????????????????????????? | | ????????????????????????????????? | | ????????????????????????????????? | | ????????????????????????????????? | | ????????????????????????????????? | | ????????????####????????????????? | | ????######### ##???????????????? | | ???## #???????????????? | | ???# #??????????#????? | | ??## #?????????? ##??? | | ??# ##????????? ??? | | ??# @ ##???????? ??? | | ???# #######??# #??? | | ???## #??# #??? | | ????### #### #??# #??? | | ??????# k #??# #### #### | | ??????# g ##??# | | ??????# g ##???###### #### | | ??????# "" ##????????# #### | | ??????## ! """ ##???????# ## | | ???????## g""" ######### ## | | ????????## ## | | ?????????## ############# | | ??????????## ###???????????# | | ???????????# ##?????????????# | | ??????????# ##??????????????# | | ??????????# ###???????????????### | | ??????????##????????????????????? | | ????????????####??????????####### | | ??????????### ##?????????# | | ?????????## ########### ##### | | ?????????# ## #???? | | ????????## ######## # ##### | | ???????## #??????# | | ???????# ##??????### | | ???????# ##????????####### # | +----------------------------------------------------+ Best States ------------- Heat Dissipation 25 Energy Generation 10 Energy Capacity 125 Matter Stores 400 Matter Capacity 400 Sight Range 18 Terrain Scan Range 16 Terrain Scan Density 60 Armor Coverage 150 Resistance: KI 20 Resistance: TH 20 Resistance: EX 20 Resistance: EM 20 Resistance: I 20 Resistance: S 20 Resistance: P 20 Evasion (%) 53 Offensive Hacking 10 Item Schematics ----------------- None Robot Schematics ------------------ None Fabricated ------------ Nothing Alien Tech Used ----------------- None Achievements -------------- Crack Shot First Step to Greatness Loot Pinata Challenges ------------ None Game ------ Seed MasterAutogunMatter Manual? 0 Play Time 00:37:57 Cumulative 1.2 hours Start 2021.09.09 @ 21:06:18 End 2021.09.10 @ 02:00:06 Sessions 5 Manual Loads 0 Difficulty Adventurer Special Mode None Game No. 1 Rogue 0 Adventurer 1 Explorer 0 Win Type - Total 0 Types 0/0/0/0/0/0/0/0/0 Lore% 0 Gallery% 2 Achievement% 1 Wizard Run 0 Options --------- ASCII 0 Keyboard 0 Movement Mouse Keybinds 0 Fullscreen 1 Font 18/Smallcaps Map View 76x50 Tactical HUD 0 Map Filters NONE Filters NONE Steam 1 RUN: af925341-6865-481c-9ed6-cd6d9c0fc7cb